[Event "Late-Titled-Tuesday-Blitz-July-09-2024"]
[Site "Chess.com"]
[Date "2024.07.09"]
[Round "5"]
[White "Gyulamiryan-koryun"]
[Black "glucolisis04"]
[Result "1-0"]
[WhiteElo "1926"]
[BlackElo "2263"]
[TimeControl "180+1"]
[EndTime "14:55:09 PDT"]
[Termination "Gyulamiryan-koryun won on time"]

1. e4 {[%clk 0:03:00.9]} 1... c5 {[%clk 0:03:00.3]} 2. Nf3 {[%clk 0:03:00]} 2...
Nc6 {[%clk 0:03:00.9]} 3. d4 {[%clk 0:03:00.2]} 3... cxd4 {[%clk 0:03:01.8]} 4.
Nxd4 {[%clk 0:02:59.9]} 4... Nf6 {[%clk 0:03:02.4]} 5. Nc3 {[%clk 0:02:59]} 5...
e5 {[%clk 0:03:02]} 6. Ndb5 {[%clk 0:02:58.7]} 6... d6 {[%clk 0:03:02]} 7. Bg5
{[%clk 0:02:56.9]} 7... a6 {[%clk 0:03:00.1]} 8. Na3 {[%clk 0:02:55.9]} 8... b5
{[%clk 0:02:59.8]} 9. Nd5 {[%clk 0:02:55.9]} 9... Be7 {[%clk 0:02:58]} 10. Bxf6
{[%clk 0:02:55.8]} 10... Bxf6 {[%clk 0:02:58.6]} 11. c3 {[%clk 0:02:55.8]} 11...
Rb8 {[%clk 0:02:56]} 12. Nc2 {[%clk 0:02:55.6]} 12... Bg5 {[%clk 0:02:56.2]} 13.
Be2 {[%clk 0:02:34.1]} 13... O-O {[%clk 0:02:54.8]} 14. O-O {[%clk 0:02:33.6]}
14... Be6 {[%clk 0:02:55.2]} 15. Nce3 {[%clk 0:02:31.6]} 15... a5 {[%clk
0:02:45.7]} 16. a3 {[%clk 0:02:23.7]} 16... b4 {[%clk 0:02:23.9]} 17. axb4
{[%clk 0:02:20.7]} 17... axb4 {[%clk 0:02:23.8]} 18. Ra6 {[%clk 0:02:10.5]}
18... Bxe3 {[%clk 0:01:06.6]} 19. fxe3 {[%clk 0:02:08]} 19... Rc8 {[%clk
0:00:41]} 20. c4 {[%clk 0:02:00.9]} 20... Qg5 {[%clk 0:00:31]} 21. Qd2 {[%clk
0:01:55.7]} 21... Rfd8 {[%clk 0:00:25.1]} 22. Rb6 {[%clk 0:01:46.1]} 22... Bxd5
{[%clk 0:00:19.6]} 23. exd5 {[%clk 0:01:43.4]} 23... Ne7 {[%clk 0:00:20]} 24.
Rxb4 {[%clk 0:01:42.2]} 24... Nf5 {[%clk 0:00:20.1]} 25. Rf3 {[%clk 0:01:35.7]}
25... Ra8 {[%clk 0:00:16.4]} 26. Qc1 {[%clk 0:01:19.6]} 26... Nd4 {[%clk
0:00:15.2]} 27. Rf2 {[%clk 0:01:14.5]} 27... Ra2 {[%clk 0:00:11.6]} 28. Qb1
{[%clk 0:01:05.2]} 28... Nxe2+ {[%clk 0:00:10.1]} 29. Rxe2 {[%clk 0:01:04.8]}
29... Rda8 {[%clk 0:00:10.7]} 30. Kf2 {[%clk 0:01:03.3]} 30... Qh4+ {[%clk
0:00:09.3]} 31. Kf3 {[%clk 0:00:59.4]} 31... e4+ {[%clk 0:00:07.1]} 32. Qxe4
{[%clk 0:00:52.3]} 32... Qf6+ {[%clk 0:00:05.3]} 33. Kg3 {[%clk 0:00:48.5]}
33... h5 {[%clk 0:00:04.5]} 34. Rf2 {[%clk 0:00:47.6]} 34... Qh6 {[%clk
0:00:03.2]} 35. Qf4 {[%clk 0:00:45.3]} 35... h4+ {[%clk 0:00:03.6]} 36. Kh3
{[%clk 0:00:44.9]} 36... Qxf4 {[%clk 0:00:03]} 37. Rxf4 {[%clk 0:00:43.3]} 37...
Ra1 {[%clk 0:00:02.9]} 38. Rxh4 {[%clk 0:00:42.8]} 38... Re1 {[%clk 0:00:03.3]}
39. Re4 {[%clk 0:00:42.4]} 39... Raa1 {[%clk 0:00:02.3]} 40. Rb8+ {[%clk
0:00:39.6]} 40... Kh7 {[%clk 0:00:02.3]} 41. Rd8 {[%clk 0:00:39.2]} 41... Kg6
{[%clk 0:00:01.6]} 42. Rxd6+ {[%clk 0:00:38.4]} 42... f6 {[%clk 0:00:02.5]} 43.
Rd7 {[%clk 0:00:35.3]} 43... Re2 {[%clk 0:00:02.2]} 44. Ree7 {[%clk 0:00:34.4]}
44... Kf5 {[%clk 0:00:02.1]} 45. e4+ {[%clk 0:00:31.7]} 45... Kf4 {[%clk
0:00:01.9]} 46. Rxg7 {[%clk 0:00:29.6]} 46... Rb1 {[%clk 0:00:01.3]} 47. Rg4+
{[%clk 0:00:28.8]} 47... Ke5 {[%clk 0:00:01.1]} 48. Re7+ {[%clk 0:00:27.1]} 1-0

[Event "Late-Titled-Tuesday-Blitz-July-09-2024"]
[Site "Chess.com"]
[Date "2024.07.09"]
[Round "5"]
[White "c63_amg"]
[Black "NovoselovRoman"]
[Result "1-0"]
[WhiteElo "2784"]
[BlackElo "2570"]
[TimeControl "180+1"]
[EndTime "14:55:18 PDT"]
[Termination "c63_amg won on time"]

1. e4 {[%clk 0:03:00.9]} 1... e6 {[%clk 0:02:57.7]} 2. d4 {[%clk 0:02:57.3]}
2... d5 {[%clk 0:02:57.8]} 3. Nc3 {[%clk 0:02:58.2]} 3... Nf6 {[%clk 0:02:53.9]}
4. Bg5 {[%clk 0:02:55.8]} 4... dxe4 {[%clk 0:02:49.3]} 5. Nxe4 {[%clk
0:02:55.4]} 5... Be7 {[%clk 0:02:49.8]} 6. Bxf6 {[%clk 0:02:55.7]} 6... Bxf6
{[%clk 0:02:50.2]} 7. Nf3 {[%clk 0:02:56.6]} 7... Bd7 {[%clk 0:02:45.8]} 8. Bd3
{[%clk 0:02:55.8]} 8... Bc6 {[%clk 0:02:46.1]} 9. Qe2 {[%clk 0:02:51.9]} 9...
Nd7 {[%clk 0:02:43.8]} 10. O-O-O {[%clk 0:02:49.3]} 10... Qe7 {[%clk 0:02:41.3]}
11. Rhe1 {[%clk 0:02:34.4]} 11... O-O-O {[%clk 0:02:39.9]} 12. c3 {[%clk
0:02:28.8]} 12... Kb8 {[%clk 0:02:27.1]} 13. Kb1 {[%clk 0:02:29.1]} 13... h6
{[%clk 0:02:16]} 14. Ned2 {[%clk 0:02:20]} 14... Rhe8 {[%clk 0:02:07.7]} 15. Nc4
{[%clk 0:02:13]} 15... Bb5 {[%clk 0:01:56.5]} 16. Na5 {[%clk 0:01:52.5]} 16...
Bxd3+ {[%clk 0:01:48]} 17. Qxd3 {[%clk 0:01:48.4]} 17... Nb6 {[%clk 0:01:48.6]}
18. Qe4 {[%clk 0:01:37.6]} 18... Rd5 {[%clk 0:01:44.4]} 19. Nb3 {[%clk
0:01:30.5]} 19... Red8 {[%clk 0:01:36.8]} 20. Nfd2 {[%clk 0:01:15.9]} 20... Qe8
{[%clk 0:01:19.6]} 21. c4 {[%clk 0:00:58.3]} 21... Rxd4 {[%clk 0:01:15.9]} 22.
Nxd4 {[%clk 0:00:57.7]} 22... Rxd4 {[%clk 0:01:16.8]} 23. Qc2 {[%clk 0:00:56.5]}
23... Qc6 {[%clk 0:01:13.3]} 24. c5 {[%clk 0:00:47.2]} 24... Nd5 {[%clk
0:01:10.6]} 25. Ne4 {[%clk 0:00:42.4]} 25... Rxd1+ {[%clk 0:00:56.7]} 26. Rxd1
{[%clk 0:00:42.5]} 26... Be5 {[%clk 0:00:57.2]} 27. a3 {[%clk 0:00:38.6]} 27...
Qb5 {[%clk 0:00:52.3]} 28. g3 {[%clk 0:00:30.5]} 28... g6 {[%clk 0:00:48.9]} 29.
f4 {[%clk 0:00:30.8]} 29... Bg7 {[%clk 0:00:49.4]} 30. Kc1 {[%clk 0:00:29.4]}
30... a5 {[%clk 0:00:47.8]} 31. c6 {[%clk 0:00:25.2]} 31... bxc6 {[%clk
0:00:34.4]} 32. Nc5 {[%clk 0:00:20.9]} 32... Ka7 {[%clk 0:00:32.7]} 33. Rd3
{[%clk 0:00:16.7]} 33... Bxb2+ {[%clk 0:00:29.8]} 34. Qxb2 {[%clk 0:00:11.7]}
34... Qxc5+ {[%clk 0:00:30]} 35. Qc2 {[%clk 0:00:12.6]} 35... Qg1+ {[%clk
0:00:29]} 36. Kb2 {[%clk 0:00:13.3]} 36... Kb7 {[%clk 0:00:21]} 37. Rb3+ {[%clk
0:00:13.8]} 37... Nb6 {[%clk 0:00:21.3]} 38. Qd2 {[%clk 0:00:10.7]} 38... Qc5
{[%clk 0:00:18.5]} 39. Ka2 {[%clk 0:00:11.4]} 39... Qc4 {[%clk 0:00:18.4]} 40.
Qd3 {[%clk 0:00:11.1]} 40... Qc5 {[%clk 0:00:16.9]} 41. Rc3 {[%clk 0:00:10.4]}
41... Qf2+ {[%clk 0:00:16.8]} 42. Rc2 {[%clk 0:00:10.4]} 42... Qe1 {[%clk
0:00:15.7]} 43. Qc3 {[%clk 0:00:09.8]} 43... Qe4 {[%clk 0:00:12.7]} 44. Rb2
{[%clk 0:00:09.3]} 44... Kc8 {[%clk 0:00:12.3]} 45. Qxa5 {[%clk 0:00:08.5]}
45... Qc4+ {[%clk 0:00:10.2]} 46. Ka1 {[%clk 0:00:07.7]} 46... Qc1+ {[%clk
0:00:10.1]} 47. Rb1 {[%clk 0:00:08.5]} 47... Qe3 {[%clk 0:00:07.9]} 48. Qb4
{[%clk 0:00:09]} 48... Qe4 {[%clk 0:00:06.9]} 49. Qxe4 {[%clk 0:00:08.8]} 1-0

[Event "Late-Titled-Tuesday-Blitz-July-09-2024"]
[Site "Chess.com"]
[Date "2024.07.09"]
[Round "5"]
[White "Sek_Konstantin"]
[Black "Richardmaster"]
[Result "1-0"]
[WhiteElo "2726"]
[BlackElo "2515"]
[TimeControl "180+1"]
[EndTime "14:55:18 PDT"]
[Termination "Sek_Konstantin won on time"]

1. e4 {[%clk 0:03:00.9]} 1... c5 {[%clk 0:02:58.2]} 2. Nf3 {[%clk 0:02:59.9]}
2... Nc6 {[%clk 0:02:58]} 3. Nc3 {[%clk 0:02:58]} 3... d6 {[%clk 0:02:51.8]} 4.
d4 {[%clk 0:02:56.8]} 4... cxd4 {[%clk 0:02:50.1]} 5. Nxd4 {[%clk 0:02:57.2]}
5... Nf6 {[%clk 0:02:50.3]} 6. Bc4 {[%clk 0:02:56.3]} 6... Qb6 {[%clk
0:02:48.1]} 7. Nb3 {[%clk 0:02:47.7]} 7... e6 {[%clk 0:02:46.8]} 8. Be3 {[%clk
0:02:46.9]} 8... Qc7 {[%clk 0:02:46.8]} 9. f4 {[%clk 0:02:46.7]} 9... a6 {[%clk
0:02:43.5]} 10. Qf3 {[%clk 0:02:45]} 10... b5 {[%clk 0:02:40.3]} 11. Bd3 {[%clk
0:02:44.4]} 11... Bb7 {[%clk 0:02:39.6]} 12. O-O {[%clk 0:02:42.6]} 12... Be7
{[%clk 0:02:11]} 13. a4 {[%clk 0:02:40.3]} 13... b4 {[%clk 0:02:07.5]} 14. Ne2
{[%clk 0:02:39.3]} 14... d5 {[%clk 0:01:59]} 15. e5 {[%clk 0:02:37.8]} 15... Nd7
{[%clk 0:01:39.4]} 16. Qh3 {[%clk 0:02:32]} 16... g6 {[%clk 0:01:31.7]} 17. Ned4
{[%clk 0:02:12.1]} 17... Na5 {[%clk 0:01:27.1]} 18. Nxa5 {[%clk 0:02:09.1]}
18... Qxa5 {[%clk 0:01:28]} 19. Kh1 {[%clk 0:02:09.3]} 19... Nc5 {[%clk
0:01:25.5]} 20. Nf3 {[%clk 0:01:47.7]} 20... O-O-O {[%clk 0:00:53.9]} 21. Ng5
{[%clk 0:01:36.6]} 21... Rdf8 {[%clk 0:00:47.6]} 22. Bd2 {[%clk 0:01:05.4]}
22... Kb8 {[%clk 0:00:30.5]} 23. Nf3 {[%clk 0:01:01.4]} 23... Ne4 {[%clk
0:00:27.6]} 24. Bxe4 {[%clk 0:00:59.1]} 24... dxe4 {[%clk 0:00:28.5]} 25. Nd4
{[%clk 0:00:59.6]} 25... Rd8 {[%clk 0:00:26.7]} 26. c3 {[%clk 0:00:46.5]} 26...
Qb6 {[%clk 0:00:21.1]} 27. a5 {[%clk 0:00:45.8]} 27... Qa7 {[%clk 0:00:20.5]}
28. Be3 {[%clk 0:00:44.9]} 28... Bc5 {[%clk 0:00:19.7]} 29. Qh4 {[%clk
0:00:39.6]} 29... Rd7 {[%clk 0:00:15.2]} 30. Rad1 {[%clk 0:00:33.6]} 30... Bd5
{[%clk 0:00:14.2]} 31. cxb4 {[%clk 0:00:29.9]} 31... Bxd4 {[%clk 0:00:12.7]} 32.
Bxd4 {[%clk 0:00:26.2]} 32... Qb7 {[%clk 0:00:13.1]} 33. Qf2 {[%clk 0:00:16.4]}
33... Rc8 {[%clk 0:00:11.2]} 34. Bc5 {[%clk 0:00:15.3]} 34... Rcd8 {[%clk
0:00:06.8]} 35. Qe3 {[%clk 0:00:12.2]} 35... Bc6 {[%clk 0:00:05.1]} 36. Bd6+
{[%clk 0:00:11.9]} 36... Ka8 {[%clk 0:00:04.8]} 37. Kg1 {[%clk 0:00:11.3]} 37...
Bd5 {[%clk 0:00:04.7]} 38. Rc1 {[%clk 0:00:11.3]} 38... Rc8 {[%clk 0:00:04.2]}
39. Rc5 {[%clk 0:00:10.8]} 39... Rxc5 {[%clk 0:00:03.6]} 40. Qxc5 {[%clk
0:00:10.9]} 40... Qc6 {[%clk 0:00:03]} 41. Qe3 {[%clk 0:00:08.7]} 41... Qb7
{[%clk 0:00:02.4]} 42. Rc1 {[%clk 0:00:08]} 42... Rd8 {[%clk 0:00:02.6]} 43. Rc7
{[%clk 0:00:07.4]} 1-0

[Event "Late-Titled-Tuesday-Blitz-July-09-2024"]
[Site "Chess.com"]
[Date "2024.07.09"]
[Round "5"]
[White "klimkoj"]
[Black "Javokhir_Sindarov05"]
[Result "0-1"]
[WhiteElo "2863"]
[BlackElo "3071"]
[TimeControl "180+1"]
[EndTime "14:55:19 PDT"]
[Termination "Javokhir_Sindarov05 won by checkmate"]

1. e4 {[%clk 0:03:00.9]} 1... e5 {[%clk 0:02:58.7]} 2. Nf3 {[%clk 0:03:01.1]}
2... Nc6 {[%clk 0:02:59.4]} 3. Bb5 {[%clk 0:03:01.3]} 3... a6 {[%clk 0:02:59.2]}
4. Ba4 {[%clk 0:03:01.2]} 4... Nf6 {[%clk 0:02:59.7]} 5. O-O {[%clk 0:03:01.3]}
5... Bc5 {[%clk 0:03:00.3]} 6. c3 {[%clk 0:03:00.2]} 6... b5 {[%clk 0:03:00.5]}
7. Bc2 {[%clk 0:03:00.8]} 7... d5 {[%clk 0:03:00.1]} 8. exd5 {[%clk 0:02:57.2]}
8... Qxd5 {[%clk 0:03:00]} 9. d3 {[%clk 0:02:50.8]} 9... O-O {[%clk 0:02:38.6]}
10. Bg5 {[%clk 0:02:44.1]} 10... Bg4 {[%clk 0:02:02.9]} 11. Nbd2 {[%clk
0:02:31.3]} 11... Kh8 {[%clk 0:01:47.8]} 12. h3 {[%clk 0:02:20.2]} 12... Bh5
{[%clk 0:01:46.5]} 13. Bxf6 {[%clk 0:02:10.5]} 13... gxf6 {[%clk 0:01:47.4]} 14.
Ne4 {[%clk 0:02:11.1]} 14... Rg8 {[%clk 0:01:36.9]} 15. Kh1 {[%clk 0:01:59.8]}
15... Be7 {[%clk 0:00:35.6]} 16. g4 {[%clk 0:01:52.1]} 16... Bg6 {[%clk
0:00:35.1]} 17. Nh4 {[%clk 0:01:48.7]} 17... Nd8 {[%clk 0:00:29.4]} 18. Qf3
{[%clk 0:01:43.6]} 18... Ne6 {[%clk 0:00:29.3]} 19. Bb3 {[%clk 0:01:39.2]} 19...
Qc6 {[%clk 0:00:29.2]} 20. Nf5 {[%clk 0:01:20.4]} 20... Bxf5 {[%clk 0:00:18.5]}
21. gxf5 {[%clk 0:01:17]} 21... Nf4 {[%clk 0:00:19.1]} 22. d4 {[%clk 0:00:49.7]}
22... Qd7 {[%clk 0:00:15]} 23. dxe5 {[%clk 0:00:48.2]} 23... Qxf5 {[%clk
0:00:09.4]} 24. exf6 {[%clk 0:00:38]} 24... Bxf6 {[%clk 0:00:09.5]} 25. Rg1
{[%clk 0:00:33.4]} 25... Be5 {[%clk 0:00:08]} 26. Rg4 {[%clk 0:00:28.2]} 26...
Rxg4 {[%clk 0:00:04.4]} 27. hxg4 {[%clk 0:00:29.1]} 27... Qg6 {[%clk 0:00:04.6]}
28. Ng3 {[%clk 0:00:18.6]} 28... Rd8 {[%clk 0:00:04]} 29. Re1 {[%clk 0:00:17.4]}
29... Qh6+ {[%clk 0:00:03.4]} 30. Kg1 {[%clk 0:00:17.5]} 30... f6 {[%clk
0:00:03.5]} 31. Rd1 {[%clk 0:00:08.4]} 31... Re8 {[%clk 0:00:03.4]} 32. Nf5
{[%clk 0:00:07.7]} 32... Qg5 {[%clk 0:00:03.2]} 33. Rd7 {[%clk 0:00:07.4]} 33...
Bd6 {[%clk 0:00:01.9]} 34. Kf1 {[%clk 0:00:05.9]} 34... h5 {[%clk 0:00:01.5]}
35. Ng7 {[%clk 0:00:03]} 35... hxg4 {[%clk 0:00:01.5]} 36. Qh1+ {[%clk
0:00:02.9]} 36... Nh3 {[%clk 0:00:01.2]} 37. Nxe8 {[%clk 0:00:03.5]} 37... Qc1+
{[%clk 0:00:01.6]} 38. Kg2 {[%clk 0:00:04]} 38... Qd2 {[%clk 0:00:02.2]} 39. Qf1
{[%clk 0:00:03.3]} 39... Nf4+ {[%clk 0:00:02.5]} 40. Kg1 {[%clk 0:00:03.4]}
40... Nh3+ {[%clk 0:00:02.8]} 41. Kg2 {[%clk 0:00:04]} 41... Qf4 {[%clk
0:00:03.6]} 42. Nxd6 {[%clk 0:00:02.5]} 42... Qf3+ {[%clk 0:00:03.7]} 43. Kh2
{[%clk 0:00:03.1]} 43... g3+ {[%clk 0:00:03.8]} 44. Kxh3 {[%clk 0:00:03.1]}
44... g2+ {[%clk 0:00:04.2]} 45. Kh4 {[%clk 0:00:02.4]} 45... Qf4+ {[%clk
0:00:03.8]} 46. Kh5 {[%clk 0:00:02.4]} 46... Qg5# {[%clk 0:00:04.1]} 0-1

[Event "Late-Titled-Tuesday-Blitz-July-09-2024"]
[Site "Chess.com"]
[Date "2024.07.09"]
[Round "5"]
[White "marvinguevara"]
[Black "zacachess"]
[Result "0-1"]
[WhiteElo "2084"]
[BlackElo "2490"]
[TimeControl "180+1"]
[EndTime "14:55:19 PDT"]
[Termination "zacachess won by resignation"]

1. e4 {[%clk 0:03:00.9]} 1... c5 {[%clk 0:02:59.6]} 2. Nf3 {[%clk 0:03:00.6]}
2... d6 {[%clk 0:03:00]} 3. d4 {[%clk 0:03:01.1]} 3... cxd4 {[%clk 0:03:00.9]}
4. Nxd4 {[%clk 0:03:01.8]} 4... Nf6 {[%clk 0:03:01.4]} 5. Nc3 {[%clk 0:03:02.3]}
5... Nc6 {[%clk 0:03:01.9]} 6. Be3 {[%clk 0:02:59.7]} 6... e5 {[%clk 0:03:01.8]}
7. Nb3 {[%clk 0:02:58.2]} 7... Be7 {[%clk 0:03:02.1]} 8. Be2 {[%clk 0:02:57]}
8... Be6 {[%clk 0:02:59.7]} 9. O-O {[%clk 0:02:43.8]} 9... O-O {[%clk
0:02:58.4]} 10. Bf3 {[%clk 0:02:43]} 10... a5 {[%clk 0:02:58.5]} 11. a4 {[%clk
0:02:41.6]} 11... Nb4 {[%clk 0:02:58.8]} 12. g3 {[%clk 0:02:13.8]} 12... Rc8
{[%clk 0:02:57.7]} 13. Bg2 {[%clk 0:02:09.8]} 13... d5 {[%clk 0:02:22.7]} 14.
exd5 {[%clk 0:02:08.8]} 14... Nfxd5 {[%clk 0:02:22.3]} 15. Nxd5 {[%clk
0:02:03.8]} 15... Nxd5 {[%clk 0:02:19.6]} 16. Re1 {[%clk 0:01:32.9]} 16... Nxe3
{[%clk 0:01:39.2]} 17. Rxe3 {[%clk 0:01:31.8]} 17... Qxd1+ {[%clk 0:01:26.4]}
18. Rxd1 {[%clk 0:01:30.9]} 18... Rxc2 {[%clk 0:01:23.8]} 19. Bxb7 {[%clk
0:01:05.4]} 19... Rxb2 {[%clk 0:01:11.8]} 20. Nxa5 {[%clk 0:01:03.8]} 20... Bd8
{[%clk 0:00:37.2]} 21. Nc6 {[%clk 0:00:52.9]} 21... Bb6 {[%clk 0:00:37.3]} 22.
Ba6 {[%clk 0:00:27.7]} 22... Bxe3 {[%clk 0:00:34.2]} 23. fxe3 {[%clk 0:00:26.9]}
23... Bg4 {[%clk 0:00:31.7]} 24. Ra1 {[%clk 0:00:20.4]} 24... f6 {[%clk
0:00:25.2]} 25. Bc4+ {[%clk 0:00:19.6]} 25... Kh8 {[%clk 0:00:25.3]} 26. a5
{[%clk 0:00:18]} 26... Bf3 {[%clk 0:00:25.4]} 27. Ne7 {[%clk 0:00:11.4]} 27...
Rg2+ {[%clk 0:00:20]} 28. Kf1 {[%clk 0:00:10.4]} 28... Rxh2 {[%clk 0:00:20]} 29.
Ra2 {[%clk 0:00:07.5]} 29... Rxa2 {[%clk 0:00:19.2]} 30. Bxa2 {[%clk 0:00:07.6]}
30... Ra8 {[%clk 0:00:19.5]} 31. Nf5 {[%clk 0:00:05.8]} 31... Rxa5 {[%clk
0:00:19.5]} 32. Bc4 {[%clk 0:00:06]} 32... g6 {[%clk 0:00:18.3]} 33. Nd6 {[%clk
0:00:05.2]} 33... Kg7 {[%clk 0:00:16]} 34. Ne8+ {[%clk 0:00:04.1]} 34... Kh6
{[%clk 0:00:14.3]} 35. Nxf6 {[%clk 0:00:04.5]} 35... e4 {[%clk 0:00:13.6]} 36.
Nd7 {[%clk 0:00:01.6]} 36... Ra3 {[%clk 0:00:12.4]} 37. Ne5 {[%clk 0:00:01.3]}
37... Rxe3 {[%clk 0:00:11.4]} 38. Nf7+ {[%clk 0:00:01.9]} 38... Kg7 {[%clk
0:00:11.2]} 39. Kf2 {[%clk 0:00:02.8]} 39... Rc3 {[%clk 0:00:11.2]} 40. Ne5
{[%clk 0:00:03]} 40... g5 {[%clk 0:00:10.7]} 41. Be6 {[%clk 0:00:03.1]} 41... h5
{[%clk 0:00:10.3]} 42. g4 {[%clk 0:00:02.2]} 42... Kf6 {[%clk 0:00:09.3]} 43.
Bf5 {[%clk 0:00:01.6]} 43... Kxe5 {[%clk 0:00:09.1]} 44. gxh5 {[%clk 0:00:01.1]}
44... Kxf5 {[%clk 0:00:09.2]} 45. h6 {[%clk 0:00:01.8]} 45... Rc6 {[%clk
0:00:08.7]} 46. h7 {[%clk 0:00:02.3]} 46... Rh6 {[%clk 0:00:09.1]} 47. h8=Q
{[%clk 0:00:02.2]} 47... Rxh8 {[%clk 0:00:09.4]} 0-1

[Event "Late-Titled-Tuesday-Blitz-July-09-2024"]
[Site "Chess.com"]
[Date "2024.07.09"]
[Round "5"]
[White "Jahonas"]
[Black "rhungaski"]
[Result "0-1"]
[WhiteElo "2431"]
[BlackElo "2635"]
[TimeControl "180+1"]
[EndTime "14:55:23 PDT"]
[Termination "rhungaski won by resignation"]

1. d4 {[%clk 0:03:00.9]} 1... Nf6 {[%clk 0:02:56.4]} 2. Nf3 {[%clk 0:03:00.9]}
2... g6 {[%clk 0:02:56.6]} 3. Bf4 {[%clk 0:03:00.5]} 3... Bg7 {[%clk 0:02:56.3]}
4. e3 {[%clk 0:03:00.9]} 4... O-O {[%clk 0:02:56.4]} 5. Nbd2 {[%clk 0:03:00.6]}
5... d6 {[%clk 0:02:56.9]} 6. h3 {[%clk 0:03:00.5]} 6... Nbd7 {[%clk 0:02:56.2]}
7. Be2 {[%clk 0:03:00.7]} 7... b6 {[%clk 0:02:56.2]} 8. O-O {[%clk 0:03:00.3]}
8... c5 {[%clk 0:02:56.7]} 9. c3 {[%clk 0:02:59.9]} 9... Bb7 {[%clk 0:02:55]}
10. Bh2 {[%clk 0:02:59.6]} 10... a6 {[%clk 0:02:55.1]} 11. Qb3 {[%clk
0:02:53.8]} 11... Ra7 {[%clk 0:02:51.3]} 12. Rac1 {[%clk 0:02:52.5]} 12... Qa8
{[%clk 0:02:49.8]} 13. Rfd1 {[%clk 0:02:49.6]} 13... Rc8 {[%clk 0:02:42.8]} 14.
Nc4 {[%clk 0:02:43.6]} 14... b5 {[%clk 0:02:37.4]} 15. Na5 {[%clk 0:02:42.3]}
15... c4 {[%clk 0:02:26.1]} 16. Qa3 {[%clk 0:02:34.9]} 16... Bd5 {[%clk
0:02:10.9]} 17. Ne1 {[%clk 0:02:18.1]} 17... Ne8 {[%clk 0:02:10.8]} 18. f3
{[%clk 0:02:06.5]} 18... f5 {[%clk 0:02:10.8]} 19. Bg3 {[%clk 0:01:57]} 19...
Bh6 {[%clk 0:02:08.8]} 20. Bf2 {[%clk 0:01:56.8]} 20... Ndf6 {[%clk 0:02:02.3]}
21. b3 {[%clk 0:01:55.1]} 21... Rac7 {[%clk 0:01:51.6]} 22. bxc4 {[%clk
0:01:54.2]} 22... bxc4 {[%clk 0:01:52.5]} 23. Rb1 {[%clk 0:01:49.7]} 23... Bf7
{[%clk 0:01:16.6]} 24. Nc2 {[%clk 0:01:40.5]} 24... Ng7 {[%clk 0:01:13.8]} 25.
Nb4 {[%clk 0:01:18.2]} 25... Nd5 {[%clk 0:01:10.8]} 26. Nxd5 {[%clk 0:01:16.8]}
26... Bxd5 {[%clk 0:01:11.7]} 27. Rb6 {[%clk 0:01:12.2]} 27... Rb8 {[%clk
0:01:09.1]} 28. Rdb1 {[%clk 0:01:10.9]} 28... Rxb6 {[%clk 0:01:09.1]} 29. Rxb6
{[%clk 0:01:10.6]} 29... Qc8 {[%clk 0:01:06.2]} 30. Qb4 {[%clk 0:01:08.8]} 30...
Qe6 {[%clk 0:01:05.7]} 31. Rb8+ {[%clk 0:00:54.2]} 31... Kf7 {[%clk 0:01:05.7]}
32. Qb6 {[%clk 0:00:52.9]} 32... Rd7 {[%clk 0:01:05.5]} 33. Nb7 {[%clk
0:00:47.3]} 33... Bxb7 {[%clk 0:00:56.2]} 34. Rxb7 {[%clk 0:00:47.3]} 34... Rxb7
{[%clk 0:00:57.1]} 35. Qxb7 {[%clk 0:00:46.9]} 35... Bxe3 {[%clk 0:00:55.7]} 36.
Qxa6 {[%clk 0:00:45.9]} 36... Bxf2+ {[%clk 0:00:54]} 37. Kxf2 {[%clk 0:00:45.5]}
37... d5 {[%clk 0:00:49.6]} 38. Qxe6+ {[%clk 0:00:42.9]} 38... Nxe6 {[%clk
0:00:40.8]} 39. g3 {[%clk 0:00:35.8]} 39... f4 {[%clk 0:00:39.4]} 40. gxf4
{[%clk 0:00:35.2]} 40... Nxf4 {[%clk 0:00:36.9]} 41. Bf1 {[%clk 0:00:34.3]}
41... Ke6 {[%clk 0:00:19.6]} 42. h4 {[%clk 0:00:33.1]} 42... Kd6 {[%clk
0:00:18.4]} 43. Kg3 {[%clk 0:00:31.7]} 43... Nh5+ {[%clk 0:00:18.8]} 44. Kg4
{[%clk 0:00:30.9]} 44... h6 {[%clk 0:00:19.3]} 45. f4 {[%clk 0:00:30]} 45...
Nf6+ {[%clk 0:00:20.2]} 46. Kf3 {[%clk 0:00:29.6]} 46... Ne4 {[%clk 0:00:17.9]}
47. f5 {[%clk 0:00:12.2]} 47... gxf5 {[%clk 0:00:16.9]} 48. Kf4 {[%clk
0:00:11.8]} 48... Nxc3 {[%clk 0:00:16.9]} 49. Kxf5 {[%clk 0:00:10.4]} 49... Nxa2
{[%clk 0:00:16.4]} 50. Kg6 {[%clk 0:00:10.5]} 50... c3 {[%clk 0:00:14]} 51. Bd3
{[%clk 0:00:10.1]} 51... Nb4 {[%clk 0:00:14.3]} 52. Bb1 {[%clk 0:00:06.1]} 52...
c2 {[%clk 0:00:14.5]} 53. Bxc2 {[%clk 0:00:06.1]} 53... Nxc2 {[%clk 0:00:15.4]}
54. Kxh6 {[%clk 0:00:06.7]} 54... Nxd4 {[%clk 0:00:15.7]} 55. Kg6 {[%clk
0:00:06.2]} 55... Ke5 {[%clk 0:00:15.3]} 56. h5 {[%clk 0:00:06.4]} 56... Nf5
{[%clk 0:00:15.9]} 0-1